fUSD/lending_fUSD_20241101
["ID","MTS","AMOUNT","RATE_DAILY","PERIOD"]
[341130968,1730443856718,-157.710536,0.00041917,14]
[341130969,1730443856727,-157.710536,0.00041917,14]
[341130970,1730443856737,-500.0,0.00041917,3]
[341130971,1730443856748,-2000.0,0.00041917,3]
[341130972,1730443856760,-500.0,0.00041917,3]
[341130973,1730443856770,-500.0,0.00041917,2]
[341130974,1730443856780,-158.206044,0.00041917,14]
[341130975,1730443856790,-151.0,0.00041917,14]
[341130976,1730443856800,-151.0,0.00041917,14]
[341130977,1730443856810,-500.0,0.00041917,3]
[341130978,1730443856820,-500.0,0.00041917,3]
[341130979,1730443856831,-686.96,0.00041917,3]
[341130980,1730443856841,-1791.21,0.00041917,3]
[341130981,1730443856850,-500.0,0.00041917,3]
[341130982,1730443856861,-500.0,0.00041917,3]
[341130983,1730443856871,-200.0,0.00041917,3]
[341130984,1730443856881,-1863.29,0.00041917,3]
[341130985,1730443856892,-543.54,0.00041917,3]
[341130986,1730443856902,-500.0,0.00041917,3]
[341130987,1730443856911,-500.0,0.00041917,3]
[341130988,1730443856921,-520.63,0.00041917,3]
[341130989,1730443856930,-500.0,0.00041917,3]
[341130990,1730443856941,-500.0,0.00041917,3]
[341130991,1730443856950,-500.0,0.00041917,3]
[341130992,1730443856960,-1469.71,0.00041917,3]
[341130993,1730443856969,-500.0,0.00041917,3]
[341130994,1730443856979,-529.48161434,0.00041917,3]
[341130995,1730443857069,-500.0,0.00041917,3]
[341130996,1730443857079,-500.0,0.00041917,3]
[341130997,1730443857088,-2131.83,0.00041917,3]
[341130998,1730443857098,-500.0,0.00041917,3]
[341130999,1730443857113,-500.0,0.00041917,3]
[341131000,1730443857122,-477.03427154,0.00041917,3]
[341131001,1730443857131,-636.71,0.00041917,3]
[341131002,1730443857140,-500.0,0.00041917,3]
[341131003,1730443857150,-500.0,0.00041917,3]
[341131004,1730443857159,-684.02,0.00041917,3]
[341131005,1730443857169,-500.0,0.00041917,3]
[341131006,1730443857178,-896.68,0.00041917,3]
[341131007,1730443857187,-537.6919336,0.00041917,3]
[341131008,1730443857196,-1924.11,0.00041917,3]
[341131009,1730443857206,-500.0,0.00041917,3]
[341131010,1730443857215,-590.13,0.00041917,3]
[341131011,1730443857224,-6093.46,0.00041917,3]
[341131012,1730443857233,-500.0,0.00041917,3]
[341131013,1730443857242,-396.58071603,0.00041917,3]
[341131014,1730443857252,-151.0,0.00041917,14]
[341131015,1730443857261,-500.0,0.00041917,3]
[341131016,1730443857271,-500.0,0.00041917,3]
[341131017,1730443857280,-151.0,0.00041917,7]
[341131018,1730443857289,-991.63,0.00041917,3]
[341131019,1730443857299,-1166.7,0.00041917,3]
[341131020,1730443857309,-151.0,0.00041917,7]
[341131021,1730443857318,-500.0,0.00041917,3]
[341131022,1730443857327,-519.79,0.00041917,3]
[341131023,1730443857336,-500.0,0.00041917,3]
[341131024,1730443857346,-500.0,0.00041917,3]
[341131025,1730443857357,-637.95,0.00041917,3]
[341131026,1730443857367,-500.0,0.00041917,3]
[341131027,1730443857375,-1271.860904,0.00041917,14]
[341131028,1730443857385,-3425.26,0.00041917,3]
[341131029,1730443857394,-1271.860904,0.00041917,14]
[341131030,1730443857403,-500.0,0.00041917,3]
[341131031,1730443857412,-255.33404,0.00041917,14]
[341131032,1730443857422,-255.33404,0.00041917,14]
[341131033,1730443857431,-1077.59,0.00041917,3]
[341131034,1730443857440,-1037.65,0.00041917,3]
[341131035,1730443857449,-917.08,0.00041917,3]
[341131036,1730443857459,-151.0,0.00041917,14]
[341131037,1730443857468,-512.32,0.00041917,3]
[341131038,1730443857478,-1169.34,0.00041917,3]
[341131039,1730443857487,-3734.58,0.00041917,3]
[341131040,1730443857497,-538.92,0.00041917,3]
[341131041,1730443857506,-229.94683618,0.00041917,3]
[341131042,1730443857519,-500.0,0.00041917,3]
[341131043,1730443857528,-564.09,0.00041917,3]
[341131044,1730443857537,-270.436696,0.00041917,14]
[341131045,1730443857547,-1183.88,0.00041917,3]
[341131046,1730443857556,-500.0,0.00041917,3]
[341131047,1730443857566,-500.0,0.00041917,3]
[341131048,1730443857575,-500.0,0.00041917,3]
[341131049,1730443857584,-849.69,0.00041917,3]
[341131050,1730443857595,-151.0,0.00041917,7]
[341131051,1730443857607,-500.0,0.00041917,3]
[341131052,1730443857616,-2295.26,0.00041917,3]
[341131053,1730443857626,-820.78,0.00041917,3]
[341131054,1730443857635,-500.0,0.00041917,3]
[341131055,1730443857644,-500.0,0.00041917,3]
[341131056,1730443857653,-158.610533,0.00041917,14]
[341131057,1730443857663,-634.5407925,0.00041917,3]
[341131058,1730443857672,-500.0,0.00041917,3]
[341131059,1730443857681,-500.0,0.00041917,3]
[341131060,1730443857690,-500.0,0.00041917,3]
[341131061,1730443857700,-500.0,0.00041917,3]
[341131062,1730443857709,-400.14443762,0.00041917,3]
[341131063,1730443857719,-938.58,0.00041917,3]
[341131064,1730443857728,-1060.6,0.00041917,3]
[341131065,1730443857738,-952.24,0.00041917,3]
[341131066,1730443857747,-1825.26,0.00041917,3]
[341131067,1730443857757,-500.0,0.00041917,3]
[341131068,1730443857767,-500.0,0.00041917,3]
[341131069,1730443857776,-500.0,0.00041917,3]
[341131070,1730443857785,-500.0,0.00041917,3]
[341131071,1730443857794,-500.0,0.00041917,3]
[341131072,1730443857804,-500.0,0.00041917,3]
[341131073,1730443857813,-151.0,0.00041917,14]
[341131074,1730443857823,-500.0,0.00041917,3]
[341131075,1730443857832,-1002.71,0.00041917,3]
[341131076,1730443857841,-1426.18,0.00041917,3]
[341131077,1730443857850,-500.0,0.00041917,3]
[341131078,1730443857861,-500.0,0.00041917,3]
[341131079,1730443857870,-500.0,0.00041917,3]
[341131080,1730443857879,-500.0,0.00041917,3]
[341131081,1730443857888,-1156.72,0.00041917,3]
[341131082,1730443857898,-152.38,0.00041932,2]
[341131083,1730443857907,-542.38156882,0.00041972,3]
[341131084,1730443857916,-500.0,0.00041972,3]
[341131085,1730443857926,-500.0,0.00041972,3]
[341131086,1730443857936,-152.38,0.00041978,2]
[341131087,1730443857945,-334.96675,0.00041983,14]
[341131088,1730443857954,-236.58225,0.00042009,14]
[341131089,1730443857964,-152.38,0.00042025,2]
[341131090,1730443857973,-192.29,0.0004205,120]
[341131091,1730443857982,-152.38,0.00042071,2]
[341131092,1730443857991,-500.0,0.00042111,3]
[341131093,1730443858001,-400.0,0.00042111,10]
[341131094,1730443858011,-400.0,0.00042111,10]
[341131095,1730443858022,-400.0,0.00042111,10]
[341131096,1730443858032,-500.0,0.00042112,3]
[341131097,1730443858042,-500.0,0.00042112,3]
[341131098,1730443858051,-500.0,0.00042112,3]
[341131099,1730443858121,-500.0,0.00042112,3]
[341131100,1730443858130,-500.0,0.00042112,3]
[341131101,1730443858139,-567.57,0.00042112,3]
[341131102,1730443858148,-500.0,0.00042112,3]
[341131103,1730443858157,-500.0,0.00042112,3]
[341131104,1730443858167,-500.0,0.00042112,3]
[341131105,1730443858177,-500.0,0.00042112,3]
[341131106,1730443858186,-500.0,0.00042112,3]
[341131107,1730443858196,-500.0,0.00042112,3]
[341131108,1730443858205,-529.17158999,0.00042112,3]
[341131109,1730443858214,-500.0,0.00042112,3]
[341131110,1730443858224,-500.0,0.00042112,3]
[341131111,1730443858233,-500.0,0.00042112,3]
[341131112,1730443858243,-500.0,0.00042112,3]
[341131113,1730443858252,-500.0,0.00042112,3]
[341131114,1730443858261,-500.0,0.00042112,3]
[341131115,1730443858270,-500.0,0.00042112,3]
[341131116,1730443858279,-500.0,0.00042112,3]
[341131117,1730443858289,-500.0,0.00042112,3]
[341131118,1730443858298,-654.62,0.00042112,3]
[341131119,1730443858307,-212.076539,0.00042112,14]
[341131120,1730443858317,-500.0,0.00042112,3]
[341131121,1730443858326,-500.0,0.00042112,3]
[341131122,1730443858335,-702.61,0.00042112,3]
[341131123,1730443858344,-151.0,0.00042112,14]
[341131124,1730443858356,-224.35560016,0.00042112,3]
[341131125,1730443858365,-500.0,0.00042112,3]
[341131126,1730443858374,-151.0,0.00042112,14]
[341131127,1730443858383,-500.0,0.00042112,3]
[341131128,1730443858392,-500.0,0.00042112,3]
[341131129,1730443858402,-989.34,0.00042112,3]
[341131130,1730443858411,-406.34,0.00042112,3]
[341131131,1730443858420,-151.0,0.00042112,14]
[341131132,1730443858430,-500.0,0.00042112,3]
[341131133,1730443858439,-500.0,0.00042112,3]
[341131134,1730443858448,-500.0,0.00042112,3]
[341131135,1730443858458,-500.0,0.00042112,3]
[341131136,1730443858468,-500.0,0.00042112,3]
[341131137,1730443858477,-310.88880968,0.00042112,3]
[341131138,1730443858486,-500.0,0.00042112,3]
[341131139,1730443858496,-500.0,0.00042112,3]
[341131140,1730443858505,-500.0,0.00042112,3]
[341131141,1730443858517,-500.0,0.00042112,3]
[341131142,1730443858526,-500.0,0.00042112,3]
[341131143,1730443858535,-513.77,0.00042112,3]
[341131144,1730443858544,-500.0,0.00042112,3]
[341131145,1730443858554,-500.0,0.00042112,3]
[341131146,1730443858569,-500.0,0.00042112,3]
[341131147,1730443858591,-500.0,0.00042112,3]
[341131148,1730443858608,-500.0,0.00042112,3]
[341131149,1730443858627,-151.0,0.00042112,14]
[341131150,1730443858646,-754.12,0.00042112,3]
[341131151,1730443858663,-182.840758,0.00042112,7]
[341131152,1730443858681,-182.840758,0.00042112,7]
[341131153,1730443858697,-220.32263017,0.00042112,3]
[341131154,1730443858712,-500.0,0.00042112,3]
[341131155,1730443858730,-524.27620314,0.00042112,3]
[341131156,1730443858750,-528.59958413,0.00042112,3]
[341131157,1730443858762,-500.0,0.00042112,3]
[341131158,1730443858777,-500.0,0.00042112,3]
[341131159,1730443858794,-630.91,0.00042112,3]
[341131160,1730443858810,-500.0,0.00042112,3]
[341131161,1730443858825,-500.0,0.00042112,3]
[341131162,1730443858839,-643.7,0.00042112,3]
[341131163,1730443858854,-301.128214,0.00042112,3]
[341131164,1730443858870,-1075.47,0.00042112,3]
[341131165,1730443858885,-500.0,0.00042112,3]
[341131166,1730443858899,-512.11649619,0.00042112,3]
[341131167,1730443858915,-500.0,0.00042112,3]
[341131168,1730443858929,-728.9,0.00042112,3]
[341131169,1730443858944,-500.0,0.00042112,3]
[341131170,1730443858961,-500.0,0.00042112,3]
[341131171,1730443858976,-1180.49,0.00042112,3]
[341131172,1730443858991,-500.0,0.00042112,3]
[341131173,1730443859007,-500.0,0.00042112,3]
[341131174,1730443859022,-157.710536,0.00042112,14]
[341131175,1730443859037,-539.27,0.00042112,3]
[341131176,1730443859051,-157.710536,0.00042112,14]
[341131177,1730443859066,-2154.22,0.00042112,3]
[341131178,1730443859080,-500.0,0.00042112,3]
[341131179,1730443859094,-151.0,0.00042112,14]
[341131180,1730443859112,-500.0,0.00042112,3]
[341131181,1730443859127,-296.749264,0.00042112,14]
[341131182,1730443859141,-500.0,0.00042112,3]
[341131183,1730443859155,-500.0,0.00042112,3]
[341131184,1730443859169,-500.0,0.00042112,3]
[341131185,1730443859184,-2729.2,0.00042112,3]
[341131186,1730443859198,-500.0,0.00042112,3]
[341131187,1730443859212,-1892.67,0.00042112,3]
[341131188,1730443859227,-500.0,0.00042112,3]
[341131189,1730443859241,-500.0,0.00042112,3]
[341131190,1730443859256,-2110.84,0.00042112,3]
[341131191,1730443859271,-500.0,0.00042112,3]
[341131192,1730443859285,-500.0,0.00042112,3]
[341131193,1730443859294,-1431.495575,0.00042112,14]
[341131194,1730443859304,-1431.495575,0.00042112,14]
[341131195,1730443859418,-500.0,0.00042112,3]
[341131196,1730443859428,-1261.22,0.00042112,3]
[341131197,1730443859437,-500.0,0.00042112,3]
[341131198,1730443859446,-500.0,0.00042112,3]
[341131199,1730443859456,-500.0,0.00042112,3]
[341131200,1730443859465,-675.57,0.00042112,3]
[341131201,1730443859474,-930.53,0.00042112,3]
[341131202,1730443859484,-547.61,0.00042112,3]
[341131203,1730443859493,-500.0,0.00042112,3]
[341131204,1730443859502,-500.0,0.00042112,3]
[341131205,1730443859512,-781.44,0.00042112,3]
[341131206,1730443859522,-743.76,0.00042112,3]
[341131207,1730443859531,-640.39,0.00042112,3]
[341131208,1730443859541,-500.0,0.00042112,3]
[341131209,1730443859551,-272.3345853,0.00042112,3]
[341131210,1730443859560,-524.727036,0.00042112,14]
[341131211,1730443859570,-500.0,0.00042112,3]
[341131212,1730443859579,-500.0,0.00042112,3]
[341131213,1730443859589,-524.727036,0.00042112,14]
[341131214,1730443859599,-500.0,0.00042112,3]
[341131215,1730443859610,-280.73008484,0.00042112,3]
[341131216,1730443859619,-500.0,0.00042112,3]
[341131217,1730443859628,-500.0,0.00042112,3]
[341131218,1730443859638,-500.0,0.00042112,3]
[341131219,1730443859647,-500.0,0.00042112,3]
[341131220,1730443859655,-786.94,0.00042112,3]
[341131221,1730443859665,-502.66,0.00042112,3]
[341131222,1730443859674,-500.0,0.00042112,3]
[341131223,1730443859683,-500.0,0.00042112,3]
[341131224,1730443859692,-151.0,0.00042112,14]
[341131225,1730443859701,-856.33,0.00042112,3]
[341131226,1730443859710,-500.0,0.00042112,3]
[341131227,1730443859719,-523.39,0.00042112,3]
[341131228,1730443859728,-1497.94,0.00042112,3]
[341131229,1730443859737,-739.3,0.00042112,3]
[341131230,1730443859746,-3829.7,0.00042112,3]
[341131231,1730443859755,-500.0,0.00042112,3]
[341131232,1730443859764,-680.22,0.00042112,3]
[341131233,1730443859773,-151.0,0.00042112,7]
[341131234,1730443859782,-604.61,0.00042112,3]
[341131235,1730443859791,-1223.18,0.00042112,3]
[341131236,1730443859800,-847.73,0.00042112,3]
[341131237,1730443859809,-500.0,0.00042112,3]
[341131238,1730443859818,-156.86864406,0.00042112,3]
[341131239,1730443859828,-840.17,0.00042112,3]
[341131240,1730443859837,-1133.09,0.00042112,3]
[341131241,1730443859847,-500.0,0.00042112,3]
[341131242,1730443859857,-500.0,0.00042112,3]
[341131243,1730443859866,-151.0,0.00042112,14]
[341131244,1730443859876,-500.0,0.00042112,3]
[341131245,1730443859885,-500.0,0.00042112,3]
[341131246,1730443859894,-500.0,0.00042112,3]
[341131247,1730443859903,-500.0,0.00042112,3]
[341131248,1730443859913,-500.0,0.00042112,3]
[341131249,1730443859923,-152.38,0.00042118,2]
[341131250,1730443859932,-152.0,0.00042146,3]
[341131251,1730443859942,-152.38,0.00042164,2]
[341131252,1730443859951,-251.13375,0.00042165,14]
[341131253,1730443859960,-165.27,0.00042182,2]
[341131254,1730443859970,-400.0,0.0004219,10]
[341131255,1730443859979,-400.0,0.0004219,10]
[341131256,1730443859988,-400.0,0.0004219,10]
[341131257,1730443859998,-1832.49,0.0004219,3]
[341131258,1730443860007,-556.49792922,0.00042191,3]
[341131259,1730443860016,-188.98746145,0.00042191,3]
[341131260,1730443860026,-500.0,0.00042191,3]
[341131261,1730443860035,-500.0,0.00042191,3]
[341131262,1730443860045,-500.0,0.00042191,3]
[341131263,1730443860054,-500.0,0.00042191,3]
[341131264,1730443860064,-500.0,0.00042191,3]
[341131265,1730443860074,-500.0,0.00042191,3]
[341131266,1730443860083,-500.0,0.00042191,3]
[341131267,1730443860093,-500.0,0.00042191,3]
[341131268,1730443860103,-500.0,0.00042191,3]
[341131269,1730443860114,-632.73,0.00042191,3]
[341131270,1730443860123,-500.0,0.00042191,3]
[341131271,1730443860132,-500.0,0.00042191,3]
[341131272,1730443860141,-500.0,0.00042191,3]
[341131273,1730443860151,-546.23,0.00042191,3]
[341131274,1730443860160,-500.0,0.00042191,3]
[341131275,1730443860170,-500.0,0.00042191,3]
[341131276,1730443860179,-500.0,0.00042191,3]
[341131277,1730443860189,-540.65052645,0.00042191,3]
[341131278,1730443860198,-500.0,0.00042191,3]
[341131279,1730443860208,-500.0,0.00042191,3]
[341131280,1730443860218,-500.0,0.00042191,3]
[341131281,1730443860229,-500.0,0.00042191,3]
[341131282,1730443860239,-629.73,0.00042191,3]
[341131283,1730443860249,-500.0,0.00042191,3]
[341131284,1730443860259,-500.0,0.00042191,3]
[341131285,1730443860268,-500.0,0.00042191,3]
[341131286,1730443860278,-151.0,0.00042191,14]
[341131287,1730443860288,-151.0,0.00042191,14]
[341131288,1730443860297,-151.0,0.00042191,14]
[341131289,1730443860307,-1521.32,0.00042191,3]
[341131290,1730443860316,-927.66,0.00042191,3]
[341131291,1730443860325,-500.0,0.00042191,3]
[341131292,1730443860335,-243.075214,0.00042191,14]
[341131293,1730443860344,-243.075214,0.00042191,14]
[341131294,1730443860353,-500.0,0.00042191,3]
[341131295,1730443860367,-500.0,0.00042191,3]
[341131296,1730443860376,-807.66,0.00042191,3]
[341131297,1730443860385,-151.0,0.00042191,14]
[341131298,1730443860395,-151.0,0.00042191,14]
[341131299,1730443860404,-500.0,0.00042191,3]
[341131300,1730443860414,-500.0,0.00042191,3]
[341131301,1730443860423,-500.0,0.00042191,3]
[341131302,1730443860432,-375.04132152,0.00042191,3]
[341131303,1730443860441,-288.4476242,0.00042191,3]
[341131304,1730443860451,-500.0,0.00042191,3]
[341131305,1730443860460,-500.0,0.00042191,3]
[341131306,1730443860470,-500.0,0.00042191,3]
[341131307,1730443860479,-911.42,0.00042191,3]
[341131308,1730443860489,-500.0,0.00042191,3]
[341131309,1730443860498,-500.0,0.00042191,3]
[341131310,1730443860508,-500.0,0.00042191,3]
[341131311,1730443860520,-500.0,0.00042191,3]
[341131312,1730443860530,-500.0,0.00042191,3]
[341131313,1730443860539,-500.0,0.00042191,3]
[341131314,1730443860548,-1135.44,0.00042191,3]
[341131315,1730443860558,-513.46,0.00042191,3]
[341131316,1730443860568,-500.0,0.00042191,3]
[341131317,1730443860577,-151.0,0.00042191,14]
[341131318,1730443860586,-602.66,0.00042191,3]
[341131319,1730443860597,-159.206604,0.00042191,14]
[341131320,1730443860606,-151.0,0.00042191,14]
[341131321,1730443860617,-500.0,0.00042191,3]
[341131322,1730443860627,-1204.51,0.00042191,3]
[341131323,1730443860636,-733.63,0.00042191,3]
[341131324,1730443860646,-1729.16,0.00042191,3]
[341131325,1730443860655,-500.0,0.00042191,3]
[341131326,1730443860665,-500.0,0.00042191,3]
[341131327,1730443860675,-500.0,0.00042191,3]
[341131328,1730443860684,-1247.5,0.00042191,3]
[341131329,1730443860694,-500.0,0.00042191,3]
[341131330,1730443860703,-500.0,0.00042191,3]
[341131331,1730443860713,-500.0,0.00042191,3]
[341131332,1730443860723,-500.0,0.00042191,3]
[341131333,1730443860733,-500.0,0.00042191,3]
[341131334,1730443860742,-500.0,0.00042191,3]
[341131335,1730443860752,-630.36296257,0.00042191,3]
[341131336,1730443860762,-500.0,0.00042191,3]
[341131337,1730443860772,-500.0,0.00042191,3]
[341131338,1730443860781,-500.0,0.00042191,3]
[341131339,1730443860790,-500.0,0.00042191,3]
[341131340,1730443860800,-160.754314,0.00042191,14]
[341131341,1730443860810,-500.0,0.00042191,3]
[341131342,1730443860819,-500.0,0.00042191,3]
[341131343,1730443860828,-367.73,0.00042191,3]
[341131344,1730443860837,-599.51,0.00042191,3]
[341131345,1730443860846,-500.0,0.00042191,3]
[341131346,1730443860857,-500.0,0.00042191,3]
[341131347,1730443860867,-500.0,0.00042191,3]
[341131348,1730443860876,-500.0,0.00042191,3]
[341131349,1730443860885,-2000.0,0.00042191,3]
[341131350,1730443860895,-500.0,0.00042191,3]
[341131351,1730443860904,-500.0,0.00042191,2]
[341131352,1730443860914,-425.01371559,0.00042191,3]
[341131353,1730443860924,-500.0,0.00042191,3]
[341131354,1730443860933,-1791.21,0.00042191,3]
[341131355,1730443860943,-686.96,0.00042191,3]
[341131356,1730443860952,-500.0,0.00042191,3]
[341131357,1730443861040,-500.0,0.00042191,3]
[341131358,1730443861049,-200.0,0.00042191,3]
[341131359,1730443861059,-1863.29,0.00042191,3]
[341131360,1730443861069,-543.54,0.00042191,3]
[341131361,1730443861079,-500.0,0.00042191,3]
[341131362,1730443861088,-500.0,0.00042191,3]
[341131363,1730443861097,-520.63,0.00042191,3]
[341131364,1730443861108,-500.0,0.00042191,3]
[341131365,1730443861118,-500.0,0.00042191,3]
[341131366,1730443861127,-1431.495575,0.00042191,14]
[341131367,1730443861137,-527.31490809,0.00042191,3]
[341131368,1730443861146,-1431.495575,0.00042191,14]
[341131369,1730443861155,-1469.71,0.00042191,3]
[341131370,1730443861164,-500.0,0.00042191,3]
[341131371,1730443861174,-500.0,0.00042191,3]
[341131372,1730443861183,-500.0,0.00042191,3]
[341131373,1730443861192,-2131.83,0.00042191,3]
[341131374,1730443861202,-500.0,0.00042191,3]
[341131375,1730443861211,-500.0,0.00042191,3]
[341131376,1730443861221,-636.71,0.00042191,3]
[341131377,1730443861231,-562.63133643,0.00042191,3]
[341131378,1730443861240,-500.0,0.00042191,3]
[341131379,1730443861250,-684.02,0.00042191,3]
[341131380,1730443861259,-500.0,0.00042191,3]
[341131381,1730443861269,-896.68,0.00042191,3]
[341131382,1730443861278,-1924.11,0.00042191,3]
[341131383,1730443861288,-500.0,0.00042191,3]
[341131384,1730443861299,-590.13,0.00042191,3]
[341131385,1730443861309,-6093.46,0.00042191,3]
[341131386,1730443861319,-500.0,0.00042191,3]
[341131387,1730443861329,-211.103858,0.00042191,14]
[341131388,1730443861339,-500.0,0.00042191,3]
[341131389,1730443861350,-500.0,0.00042191,3]
[341131390,1730443861362,-151.0,0.00042191,7]
[341131391,1730443861371,-991.63,0.00042191,3]
[341131392,1730443861380,-1166.7,0.00042191,3]
[341131393,1730443861390,-524.727036,0.00042191,14]
[341131394,1730443861399,-151.0,0.00042191,7]
[341131395,1730443861409,-170.94655735,0.00042191,3]
[341131396,1730443861418,-524.727036,0.00042191,14]
[341131397,1730443861427,-519.79,0.00042191,3]
[341131398,1730443861437,-500.0,0.00042191,3]
[341131399,1730443861447,-500.0,0.00042191,3]
[341131400,1730443861456,-637.95,0.00042191,3]
[341131401,1730443861466,-500.0,0.00042191,3]
[341131402,1730443861475,-1271.860904,0.00042191,14]
[341131403,1730443861484,-3425.26,0.00042191,3]
[341131404,1730443861493,-1271.860904,0.00042191,14]
[341131405,1730443861502,-500.0,0.00042191,3]
[341131406,1730443861513,-255.33404,0.00042191,14]
[341131407,1730443861523,-255.33404,0.00042191,14]
[341131408,1730443861533,-1077.59,0.00042191,3]
[341131409,1730443861542,-1037.65,0.00042191,3]
[341131410,1730443861551,-917.08,0.00042191,3]
[341131411,1730443861560,-512.32,0.00042191,3]
[341131412,1730443861570,-1169.34,0.00042191,3]
[341131413,1730443861579,-3734.58,0.00042191,3]
[341131414,1730443861590,-538.92,0.00042191,3]
[341131415,1730443861601,-500.0,0.00042191,3]
[341131416,1730443861612,-564.09,0.00042191,3]
[341131417,1730443861621,-1183.88,0.00042191,3]
[341131418,1730443861631,-500.0,0.00042191,3]
[341131419,1730443861641,-500.0,0.00042191,3]
[341131420,1730443861652,-523.03325723,0.00042191,3]
[341131421,1730443861662,-849.69,0.00042191,3]
[341131422,1730443861672,-500.0,0.00042191,3]
[341131423,1730443861683,-2295.26,0.00042191,3]
[341131424,1730443861694,-820.78,0.00042191,3]
[341131425,1730443861704,-181.3627131,0.00042191,3]
[341131426,1730443861714,-500.0,0.00042191,3]
[341131427,1730443861725,-500.0,0.00042191,3]
[341131428,1730443861734,-500.0,0.00042191,3]
[341131429,1730443861744,-500.0,0.00042191,3]
[341131430,1730443861754,-500.0,0.00042191,3]
[341131431,1730443861763,-938.58,0.00042191,3]
[341131432,1730443861772,-1060.6,0.00042191,3]
[341131433,1730443861783,-952.24,0.00042191,3]
[341131434,1730443861792,-1825.26,0.00042191,3]
[341131435,1730443861801,-500.0,0.00042191,3]
[341131436,1730443861811,-500.0,0.00042191,3]
[341131437,1730443861821,-500.0,0.00042191,3]
[341131438,1730443861831,-500.0,0.00042191,3]
[341131439,1730443861842,-500.0,0.00042191,3]
[341131440,1730443861851,-376.28934835,0.00042191,3]
[341131441,1730443861863,-151.0,0.00042191,14]
[341131442,1730443861873,-352.48193589,0.00042191,3]
[341131443,1730443861883,-1002.71,0.00042191,3]
[341131444,1730443861892,-1426.18,0.00042191,3]
[341131445,1730443861902,-500.0,0.00042191,3]
[341131446,1730443861912,-500.0,0.00042191,3]
[341131447,1730443861922,-500.0,0.00042191,3]
[341131448,1730443861932,-152.38,0.00042211,2]
[341131449,1730443861943,-152.38,0.00042257,2]
[341131450,1730443861953,-165.95,0.00042267,120]
[341131451,1730443861963,-151.5,0.00042283,2]
[341131452,1730443861972,-500.0,0.00042386,3]
[341131453,1730443861982,-500.0,0.00042386,3]
[341131454,1730443861991,-500.0,0.00042386,3]
[341131455,1730443862001,-500.0,0.00042386,3]
[341131456,1730443862010,-500.0,0.00042386,3]
[341131457,1730443862020,-567.57,0.00042386,3]
[341131458,1730443862029,-500.0,0.00042386,3]
[341131459,1730443862038,-500.0,0.00042386,3]
[341131460,1730443862048,-500.0,0.00042386,3]
[341131461,1730443862057,-500.0,0.00042386,3]
[341131462,1730443862067,-500.0,0.00042386,3]
[341131463,1730443862076,-500.0,0.00042386,3]
[341131464,1730443862085,-617.42198962,0.00042386,3]
[341131465,1730443862095,-500.0,0.00042386,3]
[341131466,1730443862104,-500.0,0.00042386,3]
[341131467,1730443862115,-500.0,0.00042386,3]